[Event "*** SCC Grand Prix: Titled Tuesday Blitz"]
[Site "Chess.com"]
[Date "2020.10.06"]
[Round "4"]
[White "Me_ch_an"]
[Black "DamianoLew95"]
[Result "0-1"]
[WhiteElo "2332"]
[BlackElo "2543"]
[TimeControl "180+1"]
[EndTime "10:37:30 PDT"]
[Termination "DamianoLew95 won on time"]

1. e4 {[%clk 0:03:00.9]} 1... g6 {[%clk 0:03:00.6]} 2. Nc3 {[%clk 0:02:59.7]}
2... Bg7 {[%clk 0:03:01.2]} 3. g3 {[%clk 0:03:00.1]} 3... c5 {[%clk 0:03:01.4]}
4. d3 {[%clk 0:02:59]} 4... Nc6 {[%clk 0:03:01.9]} 5. Be3 {[%clk 0:02:56.9]}
5... b6 {[%clk 0:03:02]} 6. Qd2 {[%clk 0:02:56.8]} 6... Bb7 {[%clk 0:02:59.3]}
7. Bg2 {[%clk 0:02:56.2]} 7... Nd4 {[%clk 0:02:58.6]} 8. Nd1 {[%clk 0:02:55]}
8... d5 {[%clk 0:02:46.4]} 9. c3 {[%clk 0:02:52.9]} 9... dxe4 {[%clk 0:02:46]}
10. dxe4 {[%clk 0:02:26.2]} 10... Ne6 {[%clk 0:02:42.5]} 11. Qxd8+ {[%clk
0:02:11.6]} 11... Rxd8 {[%clk 0:02:43.4]} 12. Ne2 {[%clk 0:02:05.7]} 12... Ba6
{[%clk 0:02:43.1]} 13. a4 {[%clk 0:01:53.3]} 13... Nf6 {[%clk 0:02:39.9]} 14. h3
{[%clk 0:01:34.8]} 14... O-O {[%clk 0:02:38.7]} 15. a5 {[%clk 0:01:27.3]} 15...
Bb5 {[%clk 0:02:38.9]} 16. f4 {[%clk 0:00:55.4]} 16... Rd7 {[%clk 0:02:22.2]}
17. Nf2 {[%clk 0:00:54.7]} 17... Rfd8 {[%clk 0:02:22.1]} 18. g4 {[%clk 0:00:46]}
18... h6 {[%clk 0:02:20]} 19. axb6 {[%clk 0:00:41.2]} 19... axb6 {[%clk
0:02:19.6]} 20. b3 {[%clk 0:00:14.9]} 20... Kf8 {[%clk 0:02:06.2]} 21. Rc1
{[%clk 0:00:10.7]} 21... Bxe2 {[%clk 0:02:00.6]} 22. Kxe2 {[%clk 0:00:10.6]}
22... g5 {[%clk 0:02:01.5]} 23. f5 {[%clk 0:00:09.5]} 23... Nf4+ {[%clk
0:02:00.5]} 24. Bxf4 {[%clk 0:00:09]} 24... gxf4 {[%clk 0:02:01.4]} 25. Rhd1
{[%clk 0:00:06.3]} 25... Ne8 {[%clk 0:01:57.7]} 26. Rxd7 {[%clk 0:00:05.8]}
26... Rxd7 {[%clk 0:01:58.6]} 27. Rd1 {[%clk 0:00:04]} 27... Ra7 {[%clk
0:01:57.4]} 28. c4 {[%clk 0:00:02.5]} 28... e5 {[%clk 0:01:55.1]} 29. Nd3 {[%clk
0:00:02.4]} 29... Bf6 {[%clk 0:01:50.2]} 30. Nb2 {[%clk 0:00:02.5]} 30... Ra2
{[%clk 0:01:46.9]} 31. Rd2 {[%clk 0:00:02.7]} 31... Bg5 {[%clk 0:01:47.3]} 32.
Bf3 {[%clk 0:00:02.1]} 32... Ra3 {[%clk 0:01:40]} 33. Rd3 {[%clk 0:00:01.1]}
33... Nc7 {[%clk 0:01:35]} 34. Na4 {[%clk 0:00:01.3]} 34... Ra2+ {[%clk
0:01:35.3]} 35. Rd2 {[%clk 0:00:01.5]} 35... b5 {[%clk 0:01:36.2]} 0-1

[Event "*** SCC Grand Prix: Titled Tuesday Blitz"]
[Site "Chess.com"]
[Date "2020.10.06"]
[Round "4"]
[White "TomiLen"]
[Black "AlexeiShirov"]
[Result "0-1"]
[WhiteElo "2558"]
[BlackElo "2841"]
[TimeControl "180+1"]
[EndTime "10:37:33 PDT"]
[Termination "AlexeiShirov won by resignation"]

1. c4 {[%clk 0:03:00.9]} 1... c6 {[%clk 0:02:59.2]} 2. Nc3 {[%clk 0:02:58.6]}
2... d5 {[%clk 0:02:58.8]} 3. d4 {[%clk 0:02:58.8]} 3... Nf6 {[%clk 0:02:58.5]}
4. Nf3 {[%clk 0:02:58.3]} 4... e6 {[%clk 0:02:57.3]} 5. cxd5 {[%clk 0:02:57.2]}
5... exd5 {[%clk 0:02:56.9]} 6. Qc2 {[%clk 0:02:57.3]} 6... Na6 {[%clk
0:02:45.6]} 7. Bg5 {[%clk 0:02:55.9]} 7... h6 {[%clk 0:02:35.9]} 8. Bxf6 {[%clk
0:02:41]} 8... Qxf6 {[%clk 0:02:35.5]} 9. e3 {[%clk 0:02:39.8]} 9... Bf5 {[%clk
0:02:29.5]} 10. Qd2 {[%clk 0:02:36.8]} 10... Nc7 {[%clk 0:02:26.4]} 11. Bd3
{[%clk 0:02:34.8]} 11... Bb4 {[%clk 0:02:24.4]} 12. O-O {[%clk 0:02:30.5]} 12...
O-O {[%clk 0:02:23.6]} 13. a3 {[%clk 0:02:27.3]} 13... Bd6 {[%clk 0:02:22]} 14.
e4 {[%clk 0:02:14.7]} 14... dxe4 {[%clk 0:02:21.3]} 15. Bxe4 {[%clk 0:02:13.5]}
15... Bg4 {[%clk 0:02:14.2]} 16. h3 {[%clk 0:02:06.9]} 16... Bh5 {[%clk
0:02:12.6]} 17. Rfe1 {[%clk 0:02:05.9]} 17... Rfe8 {[%clk 0:02:11.3]} 18. Qd3
{[%clk 0:02:03.3]} 18... Ne6 {[%clk 0:02:09.7]} 19. g3 {[%clk 0:01:20.2]} 19...
Rad8 {[%clk 0:02:02.9]} 20. Rad1 {[%clk 0:01:10.1]} 20... Ng5 {[%clk 0:01:38.7]}
21. Nxg5 {[%clk 0:00:47.2]} 21... Bxd1 {[%clk 0:01:37.3]} 22. Nh7 {[%clk
0:00:44]} 22... Qe6 {[%clk 0:01:30.6]} 23. Rxd1 {[%clk 0:00:40.4]} 23... Bc5
{[%clk 0:01:29.8]} 24. Bf5 {[%clk 0:00:31.1]} 24... Qb3 {[%clk 0:01:24.6]} 25.
Qf3 {[%clk 0:00:25.6]} 25... Bxd4 {[%clk 0:01:19.9]} 26. Qg4 {[%clk 0:00:21.3]}
26... Bxc3 {[%clk 0:01:07.3]} 27. Rxd8 {[%clk 0:00:20.4]} 27... Rxd8 {[%clk
0:01:06.8]} 28. bxc3 {[%clk 0:00:19.9]} 28... Qd1+ {[%clk 0:01:06.7]} 0-1

[Event "*** SCC Grand Prix: Titled Tuesday Blitz"]
[Site "Chess.com"]
[Date "2020.10.06"]
[Round "4"]
[White "ljuks68"]
[Black "valeriocarnicelli"]
[Result "0-1"]
[WhiteElo "2332"]
[BlackElo "2537"]
[TimeControl "180+1"]
[EndTime "10:37:35 PDT"]
[Termination "valeriocarnicelli won by resignation"]

1. e4 {[%clk 0:03:00.9]} 1... c5 {[%clk 0:02:59.8]} 2. Nf3 {[%clk 0:03:00.9]}
2... Nc6 {[%clk 0:03:00.2]} 3. d4 {[%clk 0:03:01]} 3... cxd4 {[%clk 0:03:00.7]}
4. Nxd4 {[%clk 0:03:01.6]} 4... Nf6 {[%clk 0:03:01.3]} 5. Nc3 {[%clk 0:03:01.7]}
5... e5 {[%clk 0:03:01]} 6. Ndb5 {[%clk 0:03:01.8]} 6... d6 {[%clk 0:03:00.4]}
7. Nd5 {[%clk 0:03:01.3]} 7... Nxd5 {[%clk 0:02:52.6]} 8. exd5 {[%clk
0:03:01.3]} 8... Ne7 {[%clk 0:02:53.1]} 9. c3 {[%clk 0:03:00.2]} 9... a6 {[%clk
0:02:52.5]} 10. Qa4 {[%clk 0:02:53.7]} 10... axb5 {[%clk 0:02:35.7]} 11. Bxb5+
{[%clk 0:02:44.5]} 11... Bd7 {[%clk 0:02:36]} 12. Bxd7+ {[%clk 0:02:44.4]} 12...
Qxd7 {[%clk 0:02:36.7]} 13. Qxa8+ {[%clk 0:02:43.9]} 13... Qd8 {[%clk
0:02:35.7]} 14. Qxd8+ {[%clk 0:02:43.2]} 14... Kxd8 {[%clk 0:02:36.6]} 15. c4
{[%clk 0:02:41.6]} 15... g6 {[%clk 0:02:36.3]} 16. Be3 {[%clk 0:02:34.7]} 16...
Bg7 {[%clk 0:02:33.8]} 17. O-O {[%clk 0:02:33.9]} 17... f5 {[%clk 0:02:33.7]}
18. a4 {[%clk 0:02:29.3]} 18... Kd7 {[%clk 0:02:31.4]} 19. a5 {[%clk 0:02:21.9]}
19... Ra8 {[%clk 0:02:31.5]} 20. b4 {[%clk 0:02:15.1]} 20... f4 {[%clk
0:02:30.9]} 21. Bd2 {[%clk 0:02:07.8]} 21... Nf5 {[%clk 0:02:27.9]} 22. Bc3
{[%clk 0:01:46.3]} 22... Rc8 {[%clk 0:02:27.6]} 23. c5 {[%clk 0:01:36.3]} 23...
dxc5 {[%clk 0:02:27.6]} 24. b5 {[%clk 0:01:36.3]} 24... Nd6 {[%clk 0:02:25.1]}
25. Rfb1 {[%clk 0:01:28.2]} 25... Ra8 {[%clk 0:02:25]} 26. a6 {[%clk 0:01:06.2]}
26... b6 {[%clk 0:02:24.9]} 27. a7 {[%clk 0:01:06.1]} 27... Nc8 {[%clk
0:02:20.9]} 28. Ra6 {[%clk 0:00:58.8]} 28... Rxa7 {[%clk 0:02:10.5]} 29. Rxa7+
{[%clk 0:00:56.1]} 29... Nxa7 {[%clk 0:02:11.4]} 30. Ra1 {[%clk 0:00:53]} 30...
Nxb5 {[%clk 0:02:11.2]} 31. Bb2 {[%clk 0:00:45]} 31... Nc7 {[%clk 0:02:03]} 32.
Ra7 {[%clk 0:00:38]} 32... Kd6 {[%clk 0:02:03.2]} 33. Bc3 {[%clk 0:00:26.7]}
33... Bf6 {[%clk 0:02:01.4]} 34. Rb7 {[%clk 0:00:22.8]} 34... Nxd5 {[%clk
0:02:00.4]} 35. Bb2 {[%clk 0:00:17.7]} 35... h5 {[%clk 0:01:57.5]} 36. g3 {[%clk
0:00:13.8]} 36... g5 {[%clk 0:01:54.6]} 37. h3 {[%clk 0:00:10.6]} 37... c4
{[%clk 0:01:52.7]} 38. Ba3+ {[%clk 0:00:09.1]} 38... Ke6 {[%clk 0:01:46.3]} 39.
Rh7 {[%clk 0:00:07.9]} 39... h4 {[%clk 0:01:42.3]} 40. gxh4 {[%clk 0:00:05.5]}
40... gxh4 {[%clk 0:01:42.3]} 0-1

[Event "*** SCC Grand Prix: Titled Tuesday Blitz"]
[Site "Chess.com"]
[Date "2020.10.06"]
[Round "4"]
[White "Infernal_XaM"]
[Black "DanielDardha2005"]
[Result "1-0"]
[WhiteElo "2882"]
[BlackElo "2680"]
[TimeControl "180+1"]
[EndTime "10:37:41 PDT"]
[Termination "Infernal_XaM won by checkmate"]

1. d4 {[%clk 0:03:00.9]} 1... Nf6 {[%clk 0:02:51.1]} 2. c4 {[%clk 0:03:01.8]}
2... e6 {[%clk 0:02:47.3]} 3. Nf3 {[%clk 0:03:02]} 3... Bb4+ {[%clk 0:02:39.2]}
4. Bd2 {[%clk 0:03:01.6]} 4... Be7 {[%clk 0:02:34.1]} 5. Nc3 {[%clk 0:02:59.9]}
5... d5 {[%clk 0:02:34.1]} 6. g4 {[%clk 0:02:58.5]} 6... O-O {[%clk 0:02:28.2]}
7. Qc2 {[%clk 0:02:57.4]} 7... dxc4 {[%clk 0:02:25.5]} 8. g5 {[%clk 0:02:55.9]}
8... Nd5 {[%clk 0:02:25]} 9. e4 {[%clk 0:02:55.3]} 9... Nb4 {[%clk 0:02:21.1]}
10. Qb1 {[%clk 0:02:54.9]} 10... N8c6 {[%clk 0:02:17.5]} 11. Be3 {[%clk
0:02:54.7]} 11... f5 {[%clk 0:02:01.6]} 12. gxf6 {[%clk 0:02:53.6]} 12... Bxf6
{[%clk 0:01:55.7]} 13. e5 {[%clk 0:02:51.7]} 13... Bh4 {[%clk 0:01:49.2]} 14.
Qe4 {[%clk 0:02:50.3]} 14... Rxf3 {[%clk 0:01:43.7]} 15. O-O-O {[%clk
0:02:39.3]} 15... Rf8 {[%clk 0:01:25.3]} 16. Bxc4 {[%clk 0:02:39]} 16... Na5
{[%clk 0:01:19.4]} 17. Be2 {[%clk 0:02:33.8]} 17... Nd5 {[%clk 0:01:15.9]} 18.
Bd3 {[%clk 0:02:33.1]} 18... g6 {[%clk 0:01:12.5]} 19. Rdg1 {[%clk 0:02:33.2]}
19... Rf7 {[%clk 0:01:09.4]} 20. Rg4 {[%clk 0:02:28.7]} 20... Bxf2 {[%clk
0:00:40.4]} 21. Bh6 {[%clk 0:02:05.7]} 21... Ne7 {[%clk 0:00:31.4]} 22. h4
{[%clk 0:02:03.7]} 22... Nf5 {[%clk 0:00:28.8]} 23. h5 {[%clk 0:01:59.2]} 23...
Qxd4 {[%clk 0:00:07.7]} 24. hxg6 {[%clk 0:01:57.5]} 24... Qxe4 {[%clk
0:00:05.1]} 25. gxf7+ {[%clk 0:01:54.4]} 25... Kxf7 {[%clk 0:00:06]} 26. Nxe4
{[%clk 0:01:54.4]} 26... Bd4 {[%clk 0:00:06.5]} 27. Ng5+ {[%clk 0:01:52.9]}
27... Ke7 {[%clk 0:00:06.8]} 28. Bxf5 {[%clk 0:01:53.1]} 28... Be3+ {[%clk
0:00:05.8]} 29. Kb1 {[%clk 0:01:51.2]} 29... exf5 {[%clk 0:00:06.7]} 30. Ra4
{[%clk 0:01:44.8]} 30... Nc6 {[%clk 0:00:06.2]} 31. Nf3 {[%clk 0:01:44.8]} 31...
f4 {[%clk 0:00:05.6]} 32. Bg5+ {[%clk 0:01:42.8]} 32... Kf7 {[%clk 0:00:04.5]}
33. Rxh7+ {[%clk 0:01:42.2]} 33... Kg6 {[%clk 0:00:04.9]} 34. Rh6+ {[%clk
0:01:39.8]} 34... Kg7 {[%clk 0:00:04.5]} 35. Rf6 {[%clk 0:01:37.7]} 35... Bg4
{[%clk 0:00:03.1]} 36. Bh6+ {[%clk 0:01:37]} 36... Kh7 {[%clk 0:00:03.1]} 37.
Ng5+ {[%clk 0:01:36.1]} 37... Kg8 {[%clk 0:00:03.8]} 38. Rg6+ {[%clk 0:01:35.7]}
38... Kh8 {[%clk 0:00:03.2]} 39. Nf7+ {[%clk 0:01:36]} 39... Kh7 {[%clk
0:00:03.5]} 40. Rg7# {[%clk 0:01:36.5]} 1-0

[Event "*** SCC Grand Prix: Titled Tuesday Blitz"]
[Site "Chess.com"]
[Date "2020.10.06"]
[Round "4"]
[White "ZverevLev"]
[Black "Fh2411"]
[Result "0-1"]
[WhiteElo "2331"]
[BlackElo "2524"]
[TimeControl "180+1"]
[EndTime "10:37:44 PDT"]
[Termination "Fh2411 won by resignation"]

1. e4 {[%clk 0:03:00.5]} 1... c5 {[%clk 0:02:59.5]} 2. Nf3 {[%clk 0:02:59.2]}
2... e6 {[%clk 0:03:00.4]} 3. d4 {[%clk 0:02:58.6]} 3... cxd4 {[%clk 0:03:00.7]}
4. Nxd4 {[%clk 0:02:59.5]} 4... a6 {[%clk 0:03:01.3]} 5. Bd3 {[%clk 0:02:58.5]}
5... Nc6 {[%clk 0:03:00.4]} 6. Nxc6 {[%clk 0:02:57.5]} 6... dxc6 {[%clk
0:03:01.3]} 7. c4 {[%clk 0:02:54.8]} 7... e5 {[%clk 0:03:01.4]} 8. O-O {[%clk
0:02:53.8]} 8... Nf6 {[%clk 0:03:01.7]} 9. Nc3 {[%clk 0:02:52.8]} 9... Bc5
{[%clk 0:02:57.9]} 10. h3 {[%clk 0:02:49.3]} 10... O-O {[%clk 0:02:54.2]} 11.
Qe2 {[%clk 0:02:36.1]} 11... h6 {[%clk 0:02:52.3]} 12. Rd1 {[%clk 0:02:32.4]}
12... Qe7 {[%clk 0:02:52.1]} 13. Be3 {[%clk 0:02:28]} 13... Be6 {[%clk 0:02:50]}
14. Na4 {[%clk 0:02:22.8]} 14... Bxe3 {[%clk 0:02:40.3]} 15. Qxe3 {[%clk
0:02:23.7]} 15... b5 {[%clk 0:02:31.5]} 16. cxb5 {[%clk 0:02:19.4]} 16... axb5
{[%clk 0:02:24.9]} 17. Nc5 {[%clk 0:02:13.3]} 17... Bxa2 {[%clk 0:01:49.9]} 18.
b3 {[%clk 0:02:06.9]} 18... Ra3 {[%clk 0:01:49.9]} 19. Bc2 {[%clk 0:01:47.8]}
19... Rfa8 {[%clk 0:01:46.7]} 20. Qc3 {[%clk 0:01:18.8]} 20... R8a5 {[%clk
0:00:57.9]} 21. f3 {[%clk 0:00:43.1]} 21... b4 {[%clk 0:00:56.1]} 22. Qxb4
{[%clk 0:00:38.9]} 22... Qxc5+ {[%clk 0:00:55.6]} 23. Qxc5 {[%clk 0:00:38.7]}
23... Rxc5 {[%clk 0:00:56.5]} 24. Rd2 {[%clk 0:00:28.7]} 24... Rca5 {[%clk
0:00:55.3]} 25. f4 {[%clk 0:00:28.9]} 25... Bxb3 {[%clk 0:00:50.5]} 26. Rxa3
{[%clk 0:00:26.2]} 26... Rxa3 {[%clk 0:00:51.4]} 27. fxe5 {[%clk 0:00:26.5]}
27... Bxc2 {[%clk 0:00:49.6]} 28. exf6 {[%clk 0:00:23.5]} 28... Bxe4 {[%clk
0:00:49.6]} 0-1

[Event "*** SCC Grand Prix: Titled Tuesday Blitz"]
[Site "Chess.com"]
[Date "2020.10.06"]
[Round "4"]
[White "davigator"]
[Black "DonBroca"]
[Result "1-0"]
[WhiteElo "2356"]
[BlackElo "2185"]
[TimeControl "180+1"]
[EndTime "10:37:47 PDT"]
[Termination "davigator won on time"]

1. e4 {[%clk 0:03:00.9]} 1... c5 {[%clk 0:02:59.7]} 2. Nf3 {[%clk 0:03:00.1]}
2... d6 {[%clk 0:02:59.6]} 3. d4 {[%clk 0:02:55.1]} 3... cxd4 {[%clk 0:03:00.5]}
4. Nxd4 {[%clk 0:02:53.8]} 4... Nf6 {[%clk 0:03:01.1]} 5. Nc3 {[%clk 0:02:53]}
5... g6 {[%clk 0:03:00.9]} 6. Be3 {[%clk 0:02:52.5]} 6... Bg7 {[%clk 0:03:01.2]}
7. f3 {[%clk 0:02:52.9]} 7... O-O {[%clk 0:03:01.2]} 8. Qd2 {[%clk 0:02:53.3]}
8... Nc6 {[%clk 0:03:00.2]} 9. O-O-O {[%clk 0:02:53.8]} 9... Bd7 {[%clk
0:03:00.4]} 10. g4 {[%clk 0:02:51.3]} 10... Ne5 {[%clk 0:02:56.5]} 11. h4 {[%clk
0:02:49.4]} 11... h5 {[%clk 0:02:54.9]} 12. g5 {[%clk 0:02:49]} 12... Ne8 {[%clk
0:02:52.5]} 13. f4 {[%clk 0:02:49]} 13... Ng4 {[%clk 0:02:51.7]} 14. Bg1 {[%clk
0:02:49]} 14... Rc8 {[%clk 0:02:51.3]} 15. Nd5 {[%clk 0:02:47.9]} 15... Nc7
{[%clk 0:02:34.5]} 16. Ne3 {[%clk 0:02:46.8]} 16... Nxe3 {[%clk 0:02:04.5]} 17.
Bxe3 {[%clk 0:02:45]} 17... Ne6 {[%clk 0:02:02.7]} 18. f5 {[%clk 0:02:31.5]}
18... Nc5 {[%clk 0:01:30.8]} 19. Bd3 {[%clk 0:02:22]} 19... Qb6 {[%clk 0:01:20]}
20. Rhf1 {[%clk 0:02:12.5]} 20... Bxd4 {[%clk 0:00:41.2]} 21. Bxd4 {[%clk
0:02:11.4]} 21... Nb3+ {[%clk 0:00:40.1]} 22. axb3 {[%clk 0:02:09.1]} 22... Qxd4
{[%clk 0:00:38.9]} 23. fxg6 {[%clk 0:02:08.3]} 23... fxg6 {[%clk 0:00:27.2]} 24.
Bc4+ {[%clk 0:02:07.5]} 24... Rxc4 {[%clk 0:00:26.4]} 25. Qxd4 {[%clk
0:02:07.3]} 25... Rxd4 {[%clk 0:00:26.7]} 26. Rxf8+ {[%clk 0:02:05.9]} 26...
Kxf8 {[%clk 0:00:26.4]} 27. Rxd4 {[%clk 0:02:06.7]} 27... Kf7 {[%clk 0:00:25.5]}
28. Rc4 {[%clk 0:02:01.6]} 28... Bc6 {[%clk 0:00:24.7]} 29. Kd2 {[%clk
0:02:01.1]} 29... Ke6 {[%clk 0:00:24.1]} 30. Ke3 {[%clk 0:02:01.5]} 30... Ke5
{[%clk 0:00:24.5]} 31. Rd4 {[%clk 0:01:58.9]} 31... e6 {[%clk 0:00:20.6]} 32. c4
{[%clk 0:01:58.2]} 32... a6 {[%clk 0:00:20.5]} 33. b4 {[%clk 0:01:58]} 33... b5
{[%clk 0:00:20.6]} 34. c5 {[%clk 0:01:57.9]} 34... d5 {[%clk 0:00:20.8]} 35.
exd5 {[%clk 0:01:56.9]} 35... exd5 {[%clk 0:00:21.1]} 36. Rf4 {[%clk 0:01:56.1]}
36... Bd7 {[%clk 0:00:06.6]} 37. Rf6 {[%clk 0:01:53.9]} 37... d4+ {[%clk
0:00:06.8]} 38. Kd2 {[%clk 0:01:53.3]} 38... Bf5 {[%clk 0:00:05.1]} 39. Rxa6
{[%clk 0:01:52.8]} 39... Kd5 {[%clk 0:00:04.8]} 40. b3 {[%clk 0:01:51.8]} 40...
d3 {[%clk 0:00:02.4]} 41. Rd6+ {[%clk 0:01:50]} 41... Ke5 {[%clk 0:00:02.4]} 42.
Rxd3 {[%clk 0:01:47.5]} 42... Bxd3 {[%clk 0:00:02.3]} 43. Kxd3 {[%clk
0:01:47.6]} 43... Kd5 {[%clk 0:00:03.2]} 44. Ke3 {[%clk 0:01:46.3]} 44... Ke5
{[%clk 0:00:01.2]} 45. Kf3 {[%clk 0:01:46.3]} 45... Kd5 {[%clk 0:00:01.6]} 46.
Kf4 {[%clk 0:01:46.2]} 46... Ke6 {[%clk 0:00:01.2]} 47. Ke4 {[%clk 0:01:46.4]}
1-0

[Event "*** SCC Grand Prix: Titled Tuesday Blitz"]
[Site "Chess.com"]
[Date "2020.10.06"]
[Round "4"]
[White "stefy02"]
[Black "MoreChessJulia"]
[Result "1-0"]
[WhiteElo "2238"]
[BlackElo "1934"]
[TimeControl "180+1"]
[EndTime "10:37:48 PDT"]
[Termination "stefy02 won by checkmate"]

1. e4 {[%clk 0:03:00.9]} 1... c5 {[%clk 0:02:59.2]} 2. Nf3 {[%clk 0:03:00.7]}
2... d6 {[%clk 0:02:59.2]} 3. d4 {[%clk 0:03:00.4]} 3... cxd4 {[%clk 0:02:59]}
4. Qxd4 {[%clk 0:03:00.9]} 4... Nf6 {[%clk 0:02:59.5]} 5. Bb5+ {[%clk
0:02:58.8]} 5... Nc6 {[%clk 0:02:58.7]} 6. c4 {[%clk 0:02:56]} 6... Bd7 {[%clk
0:02:56.7]} 7. Qd3 {[%clk 0:02:55.9]} 7... a6 {[%clk 0:02:53.6]} 8. Bxc6 {[%clk
0:02:55.4]} 8... Bxc6 {[%clk 0:02:53.3]} 9. Nc3 {[%clk 0:02:55.8]} 9... e6
{[%clk 0:02:52.1]} 10. O-O {[%clk 0:02:56]} 10... Be7 {[%clk 0:02:52]} 11. h3
{[%clk 0:02:56.3]} 11... O-O {[%clk 0:02:51]} 12. Be3 {[%clk 0:02:56.7]} 12...
Qc7 {[%clk 0:02:46.5]} 13. Nd4 {[%clk 0:02:56.5]} 13... Bd7 {[%clk 0:02:44.9]}
14. Rac1 {[%clk 0:02:53.6]} 14... Rac8 {[%clk 0:02:44.4]} 15. Nce2 {[%clk
0:02:46.8]} 15... Rfd8 {[%clk 0:02:43.1]} 16. b4 {[%clk 0:02:43.9]} 16... Bc6
{[%clk 0:02:38]} 17. Ng3 {[%clk 0:02:22.1]} 17... Qb8 {[%clk 0:02:35.7]} 18. f4
{[%clk 0:02:20.1]} 18... d5 {[%clk 0:02:25.6]} 19. cxd5 {[%clk 0:02:08.8]} 19...
exd5 {[%clk 0:02:25.4]} 20. e5 {[%clk 0:02:08.9]} 20... Nd7 {[%clk 0:02:16.9]}
21. Ngf5 {[%clk 0:02:04.7]} 21... Bxb4 {[%clk 0:02:15.1]} 22. e6 {[%clk
0:01:58.1]} 22... fxe6 {[%clk 0:02:10.3]} 23. Nxe6 {[%clk 0:01:57.8]} 23... Re8
{[%clk 0:02:07.7]} 24. Nfxg7 {[%clk 0:01:51.6]} 24... Re7 {[%clk 0:02:01.4]} 25.
Bd4 {[%clk 0:01:17.2]} 25... Bb5 {[%clk 0:01:55.3]} 26. Qg3 {[%clk 0:01:13.5]}
26... Bxf1 {[%clk 0:01:47.5]} 27. Rxf1 {[%clk 0:00:26]} 27... Kf7 {[%clk
0:01:33.9]} 28. Ng5+ {[%clk 0:00:19.1]} 28... Kf8 {[%clk 0:01:31.3]} 29. Nxh7+
{[%clk 0:00:17]} 29... Kf7 {[%clk 0:01:30.6]} 30. Qg5 {[%clk 0:00:14.6]} 30...
Bc5 {[%clk 0:01:17.5]} 31. Qxd5+ {[%clk 0:00:14.2]} 31... Kg6 {[%clk 0:01:07.9]}
32. Qf5+ {[%clk 0:00:14.2]} 32... Kh6 {[%clk 0:01:03.4]} 33. Qh5# {[%clk
0:00:14.3]} 1-0

[Event "*** SCC Grand Prix: Titled Tuesday Blitz"]
[Site "Chess.com"]
[Date "2020.10.06"]
[Round "4"]
[White "TigrVShlyape"]
[Black "MPGM"]
[Result "1-0"]
[WhiteElo "2811"]
[BlackElo "2456"]
[TimeControl "180+1"]
[EndTime "10:37:49 PDT"]
[Termination "TigrVShlyape won by resignation"]

1. d4 {[%clk 0:02:55.6]} 1... d5 {[%clk 0:02:58.4]} 2. Nf3 {[%clk 0:02:55.9]}
2... e6 {[%clk 0:02:57.7]} 3. Bf4 {[%clk 0:02:56.4]} 3... Nf6 {[%clk 0:02:51.8]}
4. e3 {[%clk 0:02:56.6]} 4... Bd6 {[%clk 0:02:51.8]} 5. Ne5 {[%clk 0:02:56.3]}
5... c5 {[%clk 0:02:47.3]} 6. c3 {[%clk 0:02:55.3]} 6... Qc7 {[%clk 0:02:45.8]}
7. Nd2 {[%clk 0:02:52.1]} 7... Nbd7 {[%clk 0:02:45.1]} 8. Ndf3 {[%clk
0:02:51.7]} 8... O-O {[%clk 0:02:43.6]} 9. Bd3 {[%clk 0:02:51.9]} 9... b6 {[%clk
0:02:32.4]} 10. g4 {[%clk 0:02:50.3]} 10... Bb7 {[%clk 0:02:27.9]} 11. g5 {[%clk
0:02:50.2]} 11... Ne4 {[%clk 0:02:27.1]} 12. Rg1 {[%clk 0:02:47.6]} 12... Rfe8
{[%clk 0:02:09.9]} 13. h4 {[%clk 0:02:46.1]} 13... a5 {[%clk 0:01:53.9]} 14. Qe2
{[%clk 0:02:45.3]} 14... a4 {[%clk 0:01:50.7]} 15. a3 {[%clk 0:02:42.5]} 15...
Nxe5 {[%clk 0:01:40.5]} 16. Bxe5 {[%clk 0:02:40.9]} 16... Kh8 {[%clk 0:01:02.8]}
17. Bxd6 {[%clk 0:02:30.2]} 17... Qxd6 {[%clk 0:01:01.4]} 18. Ne5 {[%clk
0:02:30.1]} 18... Qe7 {[%clk 0:00:56.1]} 19. Qh5 {[%clk 0:02:13.2]} 19... g6
{[%clk 0:00:48.5]} 20. Qg4 {[%clk 0:02:12.4]} 20... h5 {[%clk 0:00:42.3]} 21.
Qf4 {[%clk 0:02:10.4]} 21... Nd6 {[%clk 0:00:37.7]} 22. Bxg6 {[%clk 0:02:09.4]}
22... Kg7 {[%clk 0:00:30.2]} 23. Bxh5 {[%clk 0:02:06.6]} 23... Rh8 {[%clk
0:00:25]} 24. Bf3 {[%clk 0:02:04.4]} 24... b5 {[%clk 0:00:21.6]} 25. h5 {[%clk
0:02:03.5]} 25... Nc4 {[%clk 0:00:18.1]} 26. h6+ {[%clk 0:02:04.4]} 26... Kg8
{[%clk 0:00:17.2]} 27. g6 {[%clk 0:02:02.6]} 27... f6 {[%clk 0:00:14]} 28. Nxc4
{[%clk 0:02:02.2]} 28... bxc4 {[%clk 0:00:13.7]} 29. h7+ {[%clk 0:01:59]} 29...
Kg7 {[%clk 0:00:13.6]} 30. Rh1 {[%clk 0:01:59.3]} 30... Kf8 {[%clk 0:00:13.4]}
31. dxc5 {[%clk 0:01:41.6]} 31... Rc8 {[%clk 0:00:12]} 32. O-O-O {[%clk
0:01:39.9]} 32... Rxc5 {[%clk 0:00:10.5]} 33. e4 {[%clk 0:01:40.1]} 33... e5
{[%clk 0:00:08.1]} 34. Qh6+ {[%clk 0:01:38]} 34... Qg7 {[%clk 0:00:07.9]} 35.
exd5 {[%clk 0:01:38]} 35... Qxh6+ {[%clk 0:00:07.5]} 36. Rxh6 {[%clk 0:01:37.7]}
36... Kg7 {[%clk 0:00:08.4]} 37. Rh4 {[%clk 0:01:34.4]} 37... f5 {[%clk
0:00:08.3]} 38. Rh5 {[%clk 0:01:30.7]} 38... e4 {[%clk 0:00:07.4]} 39. Rxf5
{[%clk 0:01:30.7]} 39... exf3 {[%clk 0:00:07.1]} 40. Rf7+ {[%clk 0:01:30.9]}
40... Kxg6 {[%clk 0:00:06.9]} 41. Rxb7 {[%clk 0:01:31.4]} 41... Rxh7 {[%clk
0:00:06.9]} 42. Rg1+ {[%clk 0:01:31.5]} 1-0